bitfinex/quotes_ETHUSD_20220119
["timestamp","ask_amount","ask_price","bid_price","bid_amount"]
[1642567815904,0.0022737,3107.0,3106.9,2.73521936]
[1642567816101,0.0022737,3107.0,3106.9,7.87230568]
[1642567816304,0.0022737,3107.0,3106.9,10.60749398]
[1642567818762,0.0022737,3107.0,3106.9,30.25223398]
[1642567818944,0.0022737,3107.0,3106.9,11.57342398]
[1642567819241,0.0022737,3107.0,3106.9,10.60749398]
[1642567820050,1.32384489,3107.9,3107.5,1.22673883]
[1642567820447,0.00454738,3107.8,3107.5,1.22673883]
[1642567820847,0.00397896,3107.7,3107.5,1.22673883]
[1642567821248,0.00341054,3107.6,3107.5,1.22673883]
[1642567821449,0.00341054,3107.6,3107.1,3.15020728]
[1642567821871,0.00284211,3107.5,3107.1,3.15020728]
[1642567822297,0.00227369,3107.4,3107.1,3.15020728]
[1642567822499,0.00227369,3107.4,3107.1,4.54036842]
[1642567822697,0.00170527,3107.3,3107.1,4.54036842]
[1642567823098,1.32384489,3107.9,3107.1,4.54036842]
[1642567823099,1.32384489,3107.9,3107.2,5.29035656]
[1642567823502,0.00454738,3107.8,3107.2,5.29035656]
[1642567823706,0.00454738,3107.8,3107.2,5.25318635]
[1642567823904,0.00397896,3107.7,3107.2,5.25318635]
[1642567824107,0.00397896,3107.7,3107.2,3.45]
[1642567824305,0.00341054,3107.6,3107.2,5.2639273]
[1642567824505,0.00341054,3107.6,3107.2,3.45]
[1642567824708,0.00284211,3107.5,3107.2,3.45]
[1642567825107,0.00227369,3107.4,3107.2,3.45]
[1642567825308,1.02581858,3107.9,3107.3,2.8]
[1642567825509,1.02581858,3107.9,3107.1,2.56346114]
[1642567825709,0.00227369,3107.8,3107.1,1.1733]
[1642567825946,0.00227369,3107.8,3107.2,0.00113685]
[1642567826143,0.00170527,3107.7,3107.2,0.00113685]
[1642567826545,1.02581858,3107.9,3107.2,0.00113685]
[1642567826546,0.00113685,3107.6,3107.2,0.00113685]
[1642567830199,0.00113685,3107.6,3107.2,1.82816034]
[1642567830400,0.73235543,3107.9,3107.4,1.33091552]
[1642567830902,0.00113684,3107.8,3107.4,1.33091552]
[1642567831305,0.00113684,3107.8,3107.5,1.80984204]
[1642567831703,0.00113684,3107.8,3107.5,2.61443204]
[1642567832301,0.00113684,3107.8,3107.5,0.80459]
[1642567832501,0.00113684,3107.8,3107.5,2.67432116]
[1642567835457,2.89793684,3108.3,3107.6,3.45]
[1642567835656,3.60113684,3108.3,3107.6,3.45113684]
[1642567835858,0.0022737,3108.2,3107.6,3.45113684]
[1642567836259,0.00170528,3108.1,3107.6,3.45113684]
[1642567836662,0.00113685,3108.0,3107.6,3.45113684]
[1642567839708,0.00113685,3108.0,3107.6,0.00113684]
[1642567840511,0.40763685,3108.3,3107.7,2.6]
[1642567840948,0.00113685,3108.2,3107.8,0.00113685]
[1642567841151,0.00113685,3108.2,3107.9,1.13350632]
[1642567842759,0.00113685,3108.2,3108.0,1.80377297]
[1642567842956,0.00113685,3108.2,3108.0,1.81782945]
[1642567843156,0.00113685,3108.2,3108.0,1.80361757]
[1642567843355,0.00113685,3108.2,3108.0,1.81714377]
[1642567843556,0.00113685,3108.2,3107.9,1.13350632]
[1642567843758,0.00113685,3108.2,3108.0,1.79768041]
[1642567843957,0.00113685,3108.2,3108.0,1.79799612]
[1642567844158,0.00113685,3108.2,3107.9,1.13350632]
[1642567844747,0.00113685,3108.2,3108.0,1.8007712]
[1642567845138,0.00113685,3108.2,3107.9,1.13350632]
[1642567845537,1.32329625,3108.5,3108.0,2.65]
[1642567845736,1.32329625,3108.5,3108.0,2.65113685]
[1642567845937,0.00113685,3108.4,3108.0,0.00113685]
[1642567846537,0.4072,3108.3,3108.0,0.00113685]
[1642567846736,0.4072,3108.3,3107.7,0.00284212]
[1642567847141,0.80477,3108.2,3107.7,0.00284212]
[1642567848554,0.4072,3108.3,3107.7,0.00284212]
[1642567850555,0.1164,3108.3,3107.7,0.00284212]
[1642567850854,0.00113685,3108.4,3107.7,0.00284212]
[1642567852603,0.80583685,3108.4,3107.7,0.00284212]
[1642567854205,0.00113685,3108.4,3107.7,0.00284212]
[1642567854407,0.00113685,3108.4,3107.7,2.73725187]
[1642567854608,0.00113685,3108.4,3107.7,0.00284212]
[1642567854815,0.00113685,3108.4,3107.8,0.0022737]
[1642567855012,0.00113685,3108.4,3107.7,0.00284212]
[1642567855712,2.8324131,3108.5,3107.8,3.15]
[1642567855946,1.8324131,3108.5,3107.8,3.15]
[1642567856147,1.8324131,3108.5,3107.9,0.00284212]
[1642567856148,2.8324131,3108.5,3107.9,0.00284212]
[1642567859053,3.6371331,3108.5,3107.9,0.00284212]
[1642567859253,0.80471,3108.3,3107.9,0.00284212]
[1642567860903,1.31186724,3108.1,3107.9,1.44933271]
[1642567861301,1.31186724,3108.1,3108.0,3.4022737]
[1642567861504,0.80578684,3108.6,3108.0,3.4022737]
[1642567861505,0.00113684,3108.6,3108.0,0.0022737]
[1642567861904,0.00113684,3108.6,3107.7,2.7384409]
[1642567862105,0.00113684,3108.6,3107.8,0.00341055]
[1642567862510,0.80469,3108.4,3107.7,2.73847813]
[1642567862706,1.60942,3108.4,3107.8,0.00341055]
[1642567862907,0.80473,3108.4,3107.8,0.00341055]
[1642567863108,0.80473,3108.4,3107.7,2.73853565]
[1642567863306,0.80473,3108.4,3107.7,0.00397897]
[1642567863551,0.80473,3108.4,3107.8,0.00341055]
[1642567863752,0.80473,3108.4,3107.4,0.38767949]
[1642567863753,0.80473,3108.2,3107.7,0.00397897]
[1642567863954,0.80473,3108.2,3107.5,0.00511582]
[1642567863955,0.80489,3108.1,3107.5,0.00511582]
[1642567864152,0.80489,3108.1,3107.6,0.00454739]
[1642567864451,0.80489,3108.1,3107.5,0.00511582]
[1642567864855,1.90996,3108.0,3107.5,0.00511582]
[1642567865060,0.116,3107.7,3107.5,0.00511582]
[1642567865256,0.80498,3107.6,3107.5,0.00511582]
[1642567865455,0.92098,3107.6,3107.5,0.00511582]
[1642567865653,1.92098,3107.6,3107.5,0.00511582]
[1642567865855,0.116,3107.5,3107.0,0.00795793]
[1642567866055,0.116,3107.3,3107.1,2.7349243]
[1642567866453,1.60995,3107.7,3107.2,0.00682109]
[1642567866454,0.80494,3107.5,3107.2,0.00682109]
[1642567866655,1.61217515,3107.7,3107.3,2.7349243]
[1642567867053,1.61217515,3107.7,3107.4,0.00568424]
[1642567867704,1.61217515,3107.7,3107.3,0.00625266]
[1642567867901,1.61217515,3107.7,3107.4,2.7347154]
[1642567868305,1.61217515,3107.7,3107.5,0.00511582]
[1642567868606,2.61217515,3107.7,3107.5,0.00511582]
[1642567868808,1.61217515,3107.7,3107.5,0.00511582]
[1642567869105,1.80492,3107.6,3106.9,0.00852636]
[1642567869308,0.80492,3107.6,3107.0,2.73490492]
[1642567869507,1.80492,3107.6,3107.0,2.73490492]
[1642567869708,0.80492,3107.6,3107.1,0.00738951]
[1642567869910,1.80492,3107.6,3107.1,0.00738951]
[1642567870114,2.60989,3107.6,3107.2,2.73490492]
[1642567870510,2.60989,3107.6,3107.3,0.00625266]
[1642567871165,2.31759,3107.6,3107.3,0.00625266]
[1642567871366,3.1225947,3107.6,3106.9,0.00852636]
[1642567871571,0.80501,3107.4,3107.0,2.73486168]
[1642567871767,0.80501,3107.3,3107.0,2.73486168]
[1642567871982,3.27093011,3107.3,3107.1,0.00738951]
[1642567872170,1.0,3107.2,3107.1,0.00738951]
[1642567872566,1.0,3107.2,3105.9,5.25311177]
[1642567872567,0.80519,3107.1,3106.1,0.01307374]
[1642567872767,0.80519,3107.1,3106.2,2.73531236]
[1642567872768,0.8051893,3106.9,3106.2,2.73531236]
[1642567872975,0.80519,3106.7,3106.2,2.73531236]
[1642567873271,0.80519,3106.7,3106.3,0.0119369]
[1642567873469,1.80519,3106.7,3106.4,2.73531236]
[1642567873969,0.80519,3106.7,3106.5,0.01080005]
[1642567874169,0.80519,3106.7,3106.6,2.73531236]
[1642567874369,1.80519,3106.7,3106.6,2.73531236]
[1642567874570,1.80519,3106.7,3106.6,2.74554399]
[1642567874805,1.80519,3106.7,3106.6,0.01023163]
[1642567875306,4.77094718,3106.7,3106.1,0.01307374]
[1642567875513,0.80523,3106.5,3106.2,2.73560695]
[1642567875907,0.80523,3106.5,3106.3,0.0119369]
[1642567876307,0.50623,3106.5,3106.3,0.0119369]
[1642567876509,0.50623,3106.5,3106.1,0.01307374]
[1642567876510,0.116,3106.4,3106.1,0.01307374]
[1642567876718,0.116,3106.4,3105.1,4.10183502]
[1642567876719,6.5,3106.2,3105.1,4.10183502]
[1642567877016,0.00760074,3106.0,3104.7,1.63341177]
[1642567877209,0.01664392,3106.0,3105.2,0.00511582]
[1642567877609,0.02399736,3105.7,3105.1,0.00568424]
[1642567877812,6.5,3105.5,3104.2,1.63341177]
[1642567878030,2.93460149,3105.4,3104.1,0.4963643]
[1642567878210,0.8057,3105.1,3104.3,0.00454739]
[1642567878456,0.3,3105.1,3104.3,0.00454739]
[1642567878856,0.30113685,3105.3,3104.3,0.00454739]
[1642567879059,0.80558,3105.2,3104.3,0.00454739]
[1642567879265,1.10558,3105.2,3104.3,0.00454739]
[1642567880060,1.10558,3105.2,3104.3,1.32170601]
[1642567880267,1.61373612,3104.6,3104.3,1.32170601]
[1642567880460,1.61373612,3104.6,3104.4,0.00397896]
[1642567881463,1.31163612,3104.6,3104.4,0.00397896]
[1642567881663,1.31163612,3104.6,3104.2,0.00511581]
[1642567886362,1.31163612,3104.6,3104.3,1.21545458]
[1642567886570,1.01853612,3104.6,3104.3,1.21545458]
[1642567886766,1.01853612,3104.6,3104.4,0.00397896]
[1642567889821,1.01853612,3104.6,3104.2,0.00511581]
[1642567890008,0.00113685,3105.3,3104.6,2.03707223]
[1642567890205,0.00113685,3105.3,3104.7,0.04299071]
[1642567890505,0.00113685,3105.3,3104.8,1.35531755]
[1642567891006,0.00113685,3105.3,3104.9,0.00113685]
[1642567891408,0.30113685,3105.3,3104.9,0.00113685]
[1642567891609,0.00923685,3105.5,3105.0,6.5]
[1642567891813,0.8053098,3105.6,3105.3,1.10748113]
[1642567892012,0.00113685,3105.5,3105.3,1.10748113]
[1642567892609,0.00113685,3105.5,3105.1,1.91802514]
[1642567892811,0.00113685,3105.5,3105.2,2.73606169]
[1642567893215,0.30113685,3105.5,3105.1,0.00113685]
[1642567893476,1.91191455,3105.5,3105.1,0.00113685]
[1642567893669,1.91191455,3105.5,3104.8,2.73908098]
[1642567893872,1.91191455,3105.5,3104.9,0.0022737]
[1642567893873,3.02791455,3105.5,3104.9,0.0022737]
[1642567894069,2.91191455,3105.5,3104.9,0.0022737]
[1642567894269,0.116,3105.3,3104.9,0.0022737]
[1642567894670,0.8054626,3105.2,3104.9,0.0022737]
[1642567894880,1.1054626,3105.2,3104.9,0.0022737]
[1642567895273,1.1054626,3105.2,3104.8,0.00284212]
[1642567895470,1.1054626,3105.2,3104.7,2.73637722]
[1642567895471,1.1054626,3105.2,3104.9,0.0022737]
[1642567895670,1.1054626,3105.2,3104.8,0.00284212]
[1642567896672,1.6182026,3105.2,3104.8,0.00284212]
[1642567897200,1.9182026,3105.2,3104.8,0.00284212]
[1642567897401,1.6111114,3105.1,3104.8,0.00284212]
[1642567897606,1.9111114,3105.1,3104.8,0.00284212]
[1642567897818,2.7166576,3105.1,3104.8,0.00284212]
[1642567898208,2.8326576,3105.1,3104.8,0.00284212]
[1642567898609,1.8056,3105.0,3104.8,0.00284212]
[1642567898809,2.7166576,3105.1,3104.8,0.00284212]
[1642567899020,2.7166576,3105.1,3104.8,1.86671906]
[1642567899213,2.7166576,3105.1,3104.8,2.73931344]
[1642567899412,1.0,3105.0,3104.9,0.0022737]
[1642567899811,1.0,3105.0,3104.7,2.73992927]
[1642567900112,1.0,3105.0,3104.8,0.00284212]
[1642567900511,2.8326576,3105.1,3104.8,0.00284212]
[1642567901566,1.1055462,3105.1,3104.8,2.73936085]
[1642567901762,1.61337162,3105.3,3104.9,2.73651873]
[1642567901763,0.8054031,3105.2,3104.9,2.73651873]
[1642567901965,0.8054031,3105.2,3105.0,2.73651873]
[1642567902162,0.8054031,3105.2,3105.1,2.73651873]
[1642567902362,0.8054031,3105.2,3105.1,0.00113685]
[1642567902762,0.8054031,3105.2,3104.7,2.73651873]
[1642567902763,0.8054031,3105.2,3104.8,0.00284212]
[1642567903163,1.1054031,3105.2,3104.8,0.00284212]
[1642567903562,1.1054031,3105.2,3104.8,1.88195751]
[1642567903765,1.1054031,3105.2,3104.9,2.73651873]
[1642567903964,1.1054031,3105.2,3105.0,2.73651873]
[1642567904168,1.1054031,3105.2,3105.1,2.73651873]
[1642567904366,1.1054031,3105.2,3105.1,0.00113685]
[1642567904833,1.1054031,3105.2,3105.0,2.73651873]
[1642567905031,1.1054031,3105.2,3105.1,2.73651873]
[1642567905432,1.1054031,3105.2,3105.1,0.00113685]
[1642567905631,0.8054031,3105.2,3105.1,0.00113685]
[1642567905834,0.8054031,3105.2,3105.0,2.73651873]
[1642567906033,0.8054031,3105.2,3105.0,2.738224]
[1642567906235,0.8054031,3105.2,3105.1,0.00113685]
[1642567906840,0.5113031,3105.2,3104.9,0.0022737]
[1642567907036,0.8113031,3105.2,3104.9,0.0022737]
[1642567907438,0.8113031,3105.2,3104.8,0.00284212]
[1642567908040,1.9273031,3105.2,3104.8,0.00284212]
[1642567908239,0.6273031,3105.2,3104.8,0.00284212]
[1642567908466,1.9273031,3105.2,3104.8,2.73936085]
[1642567908665,1.9273031,3105.2,3104.9,3.19324369]
[1642567908666,0.6273031,3105.2,3104.9,3.19324369]
[1642567908870,0.6273031,3105.2,3105.0,2.73651873]
[1642567909068,0.9273031,3105.2,3105.1,5.9199486]
[1642567909265,0.9273031,3105.2,3105.1,8.65760418]
[1642567909472,0.9273031,3105.2,3105.1,6.83765558]
[1642567909666,0.6273031,3105.2,3105.1,6.83765558]
[1642567909868,0.6273031,3105.2,3105.1,8.73645717]
[1642567910073,0.116,3105.2,3105.1,6.83765558]
[1642567910472,0.116,3105.2,3105.1,8.75553637]
[1642567911572,0.116,3105.2,3105.1,6.01901764]
[1642567911775,0.116,3105.2,3105.1,8.75513981]
[1642567911976,1.61337162,3105.3,3105.2,4.45]
[1642567911977,1.43487162,3105.3,3105.2,4.45]
[1642567912203,1.43487162,3105.3,3105.2,7.18612217]
[1642567912405,0.8053481,3105.4,3105.2,7.18612217]
[1642567912603,0.8053481,3105.4,3105.3,2.73612217]
[1642567913008,0.8053481,3105.4,3105.1,0.00113685]
[1642567913408,0.8053481,3105.4,3105.0,2.73782744]
[1642567913609,0.8053481,3105.4,3105.1,0.00113685]
[1642567915311,0.8053481,3105.4,3105.1,2.73612217]
[1642567915512,0.8053481,3105.4,3105.2,2.73612217]
[1642567915710,0.8053481,3105.4,3105.3,2.73612217]
[1642567916158,0.8053481,3105.4,3105.1,0.00113685]
[1642567916558,0.8053481,3105.4,3105.0,2.73782744]
[1642567916959,0.5143481,3105.4,3105.1,0.00113685]
[1642567919167,0.5143481,3105.4,3105.0,2.73782744]
[1642567919568,0.5143481,3105.4,3105.1,2.73725902]
[1642567919812,0.5143481,3105.4,3105.2,2.73612217]
[1642567920008,0.5143481,3105.4,3105.3,2.73612217]
[1642567920210,0.5143481,3105.4,3105.1,0.00113685]
[1642567920411,1.10548,3105.3,3105.1,0.00113685]
[1642567920611,1.10548,3105.3,3105.0,0.00170527]
[1642567920811,1.10548,3105.3,3105.1,0.00113685]
[1642567921111,1.10548,3105.3,3105.0,0.00170527]
[1642567921312,2.10548,3105.3,3105.0,0.00170527]
[1642567921611,3.10548,3105.3,3105.0,0.00170527]
[1642567921910,2.81308,3105.3,3105.0,0.00170527]
[1642567922111,1.80548,3105.3,3105.0,0.00170527]
[1642567923311,1.80548,3105.3,3104.8,0.00284212]
[1642567923559,0.80561,3105.1,3104.8,0.00284212]
[1642567923962,1.40561,3105.1,3104.8,0.00284212]
[1642567924659,2.21122,3105.1,3104.8,0.00284212]
[1642567925060,3.21122,3105.1,3104.8,0.00284212]
[1642567925462,0.80571,3105.0,3104.8,0.00284212]
[1642567925760,1.80571,3104.9,3104.8,0.00284212]
[1642567925960,2.40571,3104.9,3104.8,0.00284212]
[1642567926161,3.40571,3104.9,3104.8,0.00284212]
[1642567926563,1.61078984,3104.8,3104.7,2.73612217]
[1642567926962,3.61078984,3104.8,3104.7,2.73612217]
[1642567927203,3.31218984,3104.8,3104.7,2.73612217]
[1642567927409,2.31218984,3104.8,3104.7,2.73612217]
[1642567927605,3.31218984,3104.8,3104.7,2.73612217]
[1642567930608,3.31218984,3104.8,3104.7,2.762242]
[1642567932294,3.01518984,3104.8,3104.7,2.762242]
[1642567936015,3.01518984,3104.8,3104.7,2.736142]
[1642567936417,15.89858984,3104.8,3104.7,2.73612217]
[1642567936915,7.30583,3104.7,3104.6,2.03707223]
[1642567937118,1.80583,3104.7,3104.6,2.03707223]
[1642567937418,1.81583,3104.7,3104.6,2.03820908]
[1642567937615,1.80583,3104.7,3104.6,2.03820908]
[1642567938559,8.24753,3104.7,3104.6,2.03820908]
[1642567939159,8.54753,3104.7,3104.6,2.03820908]
[1642567942609,8.23573,3104.7,3104.6,2.03820908]
[1642567944212,6.4417,3104.7,3104.6,4.03820908]
[1642567944612,6.4417,3104.7,3104.6,2.03820908]
[1642567945014,6.4417,3104.7,3104.6,8.53820908]
[1642567945214,5.23238984,3104.8,3104.6,8.53820908]
[1642567945415,5.23238984,3104.8,3104.6,8.69939908]
[1642567946459,5.23238984,3104.8,3104.7,8.48509763]
[1642567946858,5.23238984,3104.8,3104.7,10.0402139]
[1642567947460,5.23238984,3104.8,3104.7,8.48509763]
[1642567947860,4.93378984,3104.8,3104.7,8.48509763]
[1642567953115,4.62988984,3104.8,3104.7,8.48509763]
[1642567954462,4.62988984,3104.8,3104.7,6.5]
[1642567954663,4.62988984,3104.8,3104.6,2.03820908]
[1642567955764,5.43546914,3104.8,3104.6,2.03820908]
[1642567956966,5.43546914,3104.8,3104.7,2.73672135]
[1642567958216,4.33458984,3104.8,3104.7,2.73672135]
[1642567961854,4.33458984,3104.8,3104.7,8.88672135]
[1642567962654,4.33458984,3104.8,3104.7,10.43748494]
[1642567963258,1.0,3105.1,3104.8,6.5]
[1642567963462,1.0,3105.1,3105.0,6.5]
[1642567963662,1.0,3105.1,3105.0,9.96082135]
[1642567963862,1.61321546,3105.6,3105.1,6.5]
[1642567964061,3.7104,3106.1,3105.2,2.73672135]
[1642567964265,3.2317,3106.6,3105.9,1.50652249]
[1642567964462,0.80516,3106.7,3106.0,2.73672135]
[1642567964717,0.00852635,3106.3,3106.0,2.73672135]
[1642567965113,0.00795793,3106.2,3106.0,2.73672135]
[1642567965512,0.00738951,3106.1,3106.0,2.73672135]
[1642567965913,0.00738951,3106.1,3106.0,5.53672135]
[1642567966413,0.00738951,3106.1,3106.0,7.34859453]
[1642567968315,1.32604071,3106.4,3106.1,5.4]
[1642567968560,1.32604071,3106.4,3106.2,4.61543912]
[1642567968860,1.32604071,3106.4,3106.0,2.03939828]
[1642567968861,0.00113684,3106.3,3106.0,2.03939828]
[1642567970468,0.00113684,3106.3,3106.0,1.81976554]
[1642567970668,0.00113684,3106.3,3105.9,1.50652249]
[1642567971767,0.00113684,3106.3,3106.0,1.81198995]
[1642567971972,0.00113684,3106.3,3106.0,1.83431276]
[1642567972610,0.00113684,3106.3,3105.9,1.50652249]
[1642567972810,0.00113684,3106.3,3106.0,1.82354818]
[1642567973111,0.00113684,3106.3,3106.0,1.82116316]
[1642567973310,0.00113684,3106.3,3106.0,1.81663974]
[1642567973510,1.02787755,3106.4,3106.1,4.7]
[1642567973711,0.97787755,3106.4,3106.1,4.70113684]
[1642567978163,0.97787755,3106.4,3106.2,1.88306451]
[1642567978564,0.68427755,3106.4,3106.2,0.80491]
[1642567978763,0.804908,3107.3,3106.2,0.80491]
[1642567978963,0.804908,3107.3,3106.2,2.29506699]
[1642567979163,0.804908,3107.3,3106.2,0.80491]
[1642567979463,0.804908,3107.3,3106.2,0.9661]
[1642567979912,0.8049814,3107.1,3106.2,0.16119]
[1642567980311,0.00397897,3107.0,3106.2,0.16119]
[1642567980711,0.00341054,3106.9,3106.2,0.16119]
[1642567980915,0.00341054,3106.9,3106.1,4.70113684]
[1642567981112,0.00284212,3106.8,3106.1,4.70113684]
[1642567981513,0.0022737,3106.7,3106.1,4.70113684]
[1642567981913,0.00170527,3106.6,3106.1,4.70113684]
[1642567982114,0.00170527,3106.6,3106.1,0.00113684]
[1642567982322,0.80624065,3106.5,3106.1,0.00113684]
[1642567982713,0.8051038,3106.5,3106.1,0.00113684]
[1642567982914,0.8051038,3106.5,3105.4,0.00511581]
[1642567983115,0.8051038,3106.5,3105.6,1.44983575]
[1642567983315,4.6827,3107.0,3105.6,1.44983575]
[1642567983316,0.8050666,3106.7,3105.6,1.44983575]
[1642567983580,3.8712,3106.9,3105.7,1.16851054]
[1642567983879,3.57400527,3106.9,3105.8,9.23850142]
[1642567984079,0.00113685,3106.8,3105.9,2.73565931]
[1642567984280,0.00113685,3106.8,3105.9,3.54460827]
[1642567984481,1.61269405,3106.7,3106.0,2.73906985]
[1642567984889,1.61269405,3106.7,3106.1,0.00284211]
[1642567985086,1.61269405,3106.7,3106.1,2.73850142]
[1642567985285,1.61269405,3106.7,3106.1,0.00284211]
[1642567985486,1.61269405,3106.7,3106.2,0.00227369]
[1642567985688,1.61269405,3106.7,3105.9,2.73561621]
[1642567985689,1.61269405,3106.7,3105.9,2.73959517]
[1642567985887,1.61269405,3106.7,3106.0,2.73902675]
[1642567986088,1.61269405,3106.7,3106.1,2.73561621]
[1642567986287,1.61269405,3106.7,3106.1,0.00284211]
[1642567986488,1.61269405,3106.7,3106.2,0.00227369]
[1642567986687,2.41775655,3106.7,3105.9,2.73959729]
[1642567986888,2.41775655,3106.7,3106.0,2.73902887]
[1642567987089,2.41775655,3106.7,3106.1,2.73561833]
[1642567987314,2.41775655,3106.7,3106.1,0.00284211]
[1642567987519,1.61269405,3106.7,3106.2,0.00227369]
[1642567987721,1.61269405,3106.7,3105.9,2.73957832]
[1642567987921,1.61269405,3106.7,3106.0,2.7390099]
[1642567988121,1.61269405,3106.7,3106.1,2.73559936]
[1642567988321,1.61269405,3106.7,3106.1,0.00284211]
[1642567988520,1.61269405,3106.7,3106.2,0.00227369]
[1642567988720,1.61269405,3106.7,3105.9,2.73960007]
[1642567988921,1.31239405,3106.7,3106.0,2.73909332]
[1642567989122,2.11750405,3106.7,3106.0,0.00341054]
[1642567989320,0.8051058,3106.6,3106.1,0.00284211]
[1642567989520,0.8051058,3106.6,3106.0,0.00341054]
[1642567989722,1.31239405,3106.7,3106.0,0.00341054]
[1642567989921,1.31239405,3106.7,3106.0,2.73908446]
[1642567990322,1.31239405,3106.7,3106.1,0.00284211]
[1642567991164,0.00113685,3106.8,3106.1,0.00284211]
[1642567992067,0.00113685,3106.8,3106.1,2.73851603]
[1642567992468,0.00113685,3106.8,3106.2,0.00227369]
[1642567993069,0.00113685,3106.8,3106.1,0.00284211]
[1642567993570,0.00113685,3106.8,3106.1,2.73846965]
[1642567993770,0.00113685,3106.8,3106.1,0.00284211]
[1642567993971,3.58304212,3106.9,3106.3,4.3]
[1642567994171,0.8049997,3107.0,3106.3,4.3]
[1642567994373,0.8049997,3107.0,3106.4,0.00227369]
[1642567994571,1.8049997,3107.0,3106.4,0.00227369]
[1642567995420,2.6100397,3107.0,3106.4,0.00227369]
[1642567996824,1.8049997,3107.0,3106.4,0.00227369]
[1642567998864,2.6100497,3107.0,3106.4,0.00227369]
[1642567999064,2.3162497,3107.0,3106.4,0.00227369]
[1642568000267,0.8050423,3106.8,3106.1,0.00397896]
[1642568000473,1.6101323,3106.8,3106.2,0.00341054]
[1642568000668,0.80509,3106.8,3105.9,0.00511581]
[1642568000868,0.80509,3106.8,3106.0,2.73567534]
[1642568001068,0.80509,3106.8,3106.1,2.73567534]
[1642568001272,0.8050707,3106.7,3106.1,0.00397896]
[1642568001470,0.8050707,3106.7,3106.2,0.00341054]
[1642568001670,0.8050707,3106.7,3105.9,2.74076572]
[1642568001872,0.8050707,3106.7,3106.0,2.73564991]
[1642568002071,0.8050707,3106.7,3106.0,2.7401973]
[1642568002311,0.8050707,3106.7,3106.1,2.73962887]
[1642568002514,0.8050707,3106.7,3106.2,2.73564991]
[1642568002713,0.8050707,3106.7,3106.2,2.73906045]
[1642568002914,0.8050707,3106.7,3106.3,0.00284212]
[1642568003311,0.8050707,3106.7,3105.8,2.74145764]
[1642568003511,0.8050707,3106.7,3105.9,2.74088922]
[1642568003711,1.0,3107.0,3106.0,2.73577341]
[1642568003911,1.0,3107.0,3106.0,2.7403208]
[1642568004112,3.1330794,3107.1,3106.1,2.73975237]
[1642568004313,3.1330794,3107.1,3106.1,0.00397896]
[1642568004517,0.00113685,3107.0,3106.2,0.00341054]
[1642568004716,0.00113685,3107.0,3105.8,3.54641139]
[1642568004916,0.00113685,3107.0,3105.9,5.3706373]
[1642568005115,0.00113685,3107.0,3106.0,2.73572716]
[1642568005315,0.00113685,3107.0,3106.0,21.58027455]
[1642568005518,0.00113685,3107.0,3106.1,2.73970612]
[1642568005719,0.00113685,3107.0,3106.2,2.73572716]
[1642568005969,1.61269514,3106.7,3106.2,2.7391377]
[1642568006169,1.61269514,3106.7,3106.3,0.00284212]
[1642568006573,1.61269514,3106.7,3106.1,2.7397066]
[1642568006772,1.61269514,3106.7,3106.2,2.73913818]
[1642568006972,1.61269514,3106.7,3106.2,0.00341054]
[1642568007173,1.61269514,3106.7,3106.3,0.00284212]
[1642568007373,1.61269514,3106.7,3106.1,2.73970971]
[1642568007573,1.61269514,3106.7,3106.2,2.73914129]
[1642568007976,1.61269514,3106.7,3106.3,0.00284212]
[1642568008380,1.61269514,3106.7,3106.2,0.00341054]
[1642568009380,1.60139514,3106.7,3106.2,0.00341054]
[1642568013023,0.05395195,3106.6,3106.2,0.00341054]
[1642568013224,1.60139514,3106.7,3106.2,2.73914129]
[1642568013462,1.60139514,3106.7,3106.3,2.73573075]
[1642568013668,1.60139514,3106.7,3106.3,0.00284212]
[1642568013867,1.60139514,3106.7,3106.4,0.00227369]
[1642568014069,1.60139514,3106.7,3105.9,2.74092465]
[1642568014270,1.60139514,3106.7,3105.7,1.32629]
[1642568014271,1.60139514,3106.7,3106.0,2.74035623]
[1642568014468,0.50916,3106.6,3106.1,2.73580884]
[1642568014668,0.50916,3106.6,3106.1,2.7397878]
[1642568014868,0.50916,3106.6,3106.2,2.73921938]
[1642568015070,0.50916,3106.6,3106.3,2.73580884]
[1642568015269,0.50916,3106.6,3106.3,2.73865096]
[1642568015472,0.50916,3106.6,3106.4,0.00227369]
[1642568015769,0.50916,3106.6,3105.8,2.74151901]
[1642568015969,0.805115,3106.5,3105.9,2.73583478]
[1642568016174,0.805115,3106.5,3105.9,2.74095059]
[1642568016370,0.805115,3106.5,3106.0,2.74038217]
[1642568016570,0.805115,3106.5,3106.1,2.73583478]
[1642568016771,0.805115,3106.5,3106.1,2.73981374]
[1642568016970,0.805115,3106.5,3106.2,2.73924532]
[1642568017225,0.805115,3106.5,3106.3,2.73583478]
[1642568017414,2.40646914,3106.7,3106.3,0.00284212]
[1642568017614,2.40646914,3106.7,3106.4,0.00227369]
[1642568017914,1.60139514,3106.7,3105.9,2.74089937]
[1642568018113,1.60139514,3106.7,3106.0,2.73578356]
[1642568018312,1.60139514,3106.7,3106.0,2.74033095]
[1642568018513,1.60139514,3106.7,3106.1,2.73976252]
[1642568018716,1.60139514,3106.7,3106.2,2.73578356]
[1642568018912,1.60139514,3106.7,3106.2,2.7391941]
[1642568019114,1.60139514,3106.7,3106.3,2.73862568]
[1642568019516,1.60139514,3106.7,3106.5,1.52993683]
[1642568019517,1.30949514,3106.7,3106.5,1.52993683]
[1642568019716,1.30949514,3106.7,3106.6,11.23578356]
[1642568019917,1.30949514,3106.7,3106.6,9.23692041]
[1642568020417,0.00113685,3107.0,3106.6,9.23692041]
[1642568020617,0.00113685,3107.0,3106.7,2.73578356]
[1642568022066,0.00113685,3107.0,3106.6,0.00113685]
[1642568022464,0.00113685,3107.0,3106.4,2.73774673]
[1642568022663,0.00113685,3107.0,3106.5,0.00170527]
[1642568023465,0.80615685,3107.0,3106.5,0.00170527]
[1642568023769,1.61117505,3107.0,3106.5,0.00170527]
[1642568024571,1.31857505,3107.0,3106.5,0.00170527]
[1642568029667,1.02377505,3107.0,3106.5,0.00170527]
[1642568030469,0.00113685,3107.0,3106.5,0.00170527]
[1642568034521,1.61244552,3107.1,3106.5,0.00170527]
[1642568034719,1.31984552,3107.1,3106.5,0.00170527]
[1642568036166,1.31984552,3107.1,3106.5,2.73717831]
[1642568036566,1.0,3107.4,3106.6,0.00113685]
[1642568036768,1.0,3107.4,3106.6,2.73660989]
[1642568036973,0.00284212,3107.3,3106.7,2.73547304]
[1642568037171,1.61270082,3107.3,3106.6,0.00113685]
[1642568037369,0.00227369,3107.2,3106.6,0.00113685]
[1642568037570,0.00227369,3107.2,3107.1,7.64002483]
[1642568037775,1.61224786,3107.5,3107.1,13.5082663]
[1642568037970,1.61224786,3107.5,3107.2,4.56525979]
[1642568038170,0.00341054,3107.4,3107.1,2.31722483]
[1642568038370,0.00341054,3107.4,3107.1,4.14853279]
[1642568038571,1.60558116,3107.5,3107.2,5.0]